bitfinex-derivatives/quotes_ETHF0:USTF0_20241004
["timestamp","ask_amount","ask_price","bid_price","bid_amount"]
[1728049086057,0.4127,2385.8,2385.1,1.04843]
[1728049086264,0.83195,2385.8,2385.4,0.41931]
[1728049086464,0.41927,2385.7,2385.4,0.41931]
[1728049086658,0.83196,2385.8,2385.2,0.41935]
[1728049086956,0.41929,2385.6,2385.3,0.41933]
[1728049087152,3.2078,2385.7,2385.0,3.2078]
[1728049087352,0.4253,2385.5,2385.4,0.41932]
[1728049087555,0.4253,2385.5,2385.3,0.41933]
[1728049087764,0.4253,2385.5,2385.0,3.2078]
[1728049087962,0.8446,2385.5,2385.2,0.41934]
[1728049088161,0.4253,2385.5,2384.9,0.4202]
[1728049088464,0.4253,2385.5,2384.7,4.30134843]
[1728049088664,0.4253,2385.5,2384.2,0.209]
[1728049088665,0.41943,2384.8,2384.2,0.209]
[1728049088864,0.41943,2384.8,2384.5,0.41946]
[1728049089160,4.86719,2385.0,2384.7,0.41943]
[1728049089668,0.41943,2384.8,2384.0,1.46847]
[1728049089868,0.41947,2384.6,2384.3,0.4195]
[1728049090050,0.41948,2384.5,2384.2,0.41952]
[1728049090251,0.41948,2384.5,2383.9,1.04893]
[1728049090252,7.2278,2384.8,2383.9,1.04896]
[1728049090464,0.3909,2384.9,2384.1,1.04885]
[1728049090652,0.3909,2384.9,2384.3,1.04878]
[1728049090962,0.3909,2384.9,2384.6,0.41945]
[1728049090963,0.81032,2384.9,2384.6,0.41945]
[1728049091467,4.61303,2384.8,2384.5,0.41946]
[1728049091665,0.81031,2384.9,2384.6,0.41945]
[1728049091873,0.81031,2384.9,2384.7,0.41944]
[1728049092161,0.81031,2384.9,2384.3,1.04878]
[1728049092162,0.3909,2384.9,2384.8,0.41942]
[1728049092367,3.2078,2385.1,2385.0,0.41939]
[1728049092554,7.7197,2385.4,2385.0,0.41939]
[1728049092757,0.41935,2385.3,2385.0,0.41939]
[1728049092959,3.5987,2385.4,2384.9,1.04851]
[1728049093156,3.5987,2385.4,2385.1,0.41936]
[1728049093471,4.01803,2385.4,2385.1,0.41936]
[1728049093665,3.5987,2385.4,2384.8,1.44376]
[1728049093961,0.41936,2385.2,2385.0,0.41938]
[1728049094154,0.41934,2385.3,2385.1,0.41936]
[1728049094555,4.61214,2385.3,2385.1,0.41936]
[1728049094765,0.41935,2385.2,2385.0,0.41937]
[1728049094963,0.41934,2385.3,2385.1,0.41936]
[1728049095158,3.5987,2385.4,2384.9,1.04852]
[1728049095363,3.2078,2385.4,2384.9,1.04852]
[1728049095564,3.2078,2385.4,2385.3,0.41933]
[1728049095863,4.02,2385.7,2385.3,1.04834]
[1728049095864,3.2078,2385.7,2385.3,1.04834]
[1728049096067,3.2078,2385.7,2385.6,0.41928]
[1728049096268,5.06804,2386.0,2385.4,0.4308]
[1728049096458,4.02,2385.6,2384.9,0.4308]
[1728049096769,4.43929,2385.6,2385.2,0.41935]
[1728049096965,4.02,2385.6,2384.9,0.4308]
[1728049097168,0.4204,2385.7,2385.1,1.04842]
[1728049097367,3.2078,2385.8,2385.5,0.41929]
[1728049097567,4.121,2385.9,2385.7,0.41926]
[1728049097769,7.26024695,2386.1,2385.8,0.41924]
[1728049098064,7.26024695,2386.1,2385.5,0.4193]
[1728049098266,7.26024695,2386.1,2385.5,0.4308]
[1728049098267,4.0356,2386.1,2385.5,0.4308]
[1728049098861,4.0356,2386.1,2385.8,0.41924]
[1728049099065,0.4074,2386.1,2386.0,0.41921]
[1728049099282,0.4074,2386.1,2385.6,1.46749]
[1728049099472,3.6152,2386.1,2385.6,1.04821]
[1728049099768,3.6152,2386.1,2385.5,0.4308]
[1728049099970,0.41922,2386.0,2385.6,0.41928]
[1728049100168,4.6632,2386.1,2385.2,1.04838]
[1728049100368,0.4296,2385.9,2385.6,0.41927]
[1728049100570,0.84883,2385.9,2385.6,0.41927]
[1728049101069,0.4296,2385.9,2385.4,1.0483]
[1728049101266,0.84883,2385.9,2385.6,0.41927]
[1728049101473,0.4296,2385.9,2385.4,0.41932]
[1728049101668,0.41922,2386.0,2385.4,0.41932]
[1728049101669,3.6152,2386.1,2385.6,1.04821]
[1728049101870,0.41922,2386.0,2385.3,1.04834]
[1728049102074,0.41922,2386.0,2385.7,0.41926]
[1728049102376,3.6152,2386.1,2385.3,1.04834]
[1728049102579,0.41924,2385.9,2385.6,0.41927]
[1728049102772,4.6632,2386.1,2385.6,0.41927]
[1728049102973,0.41922,2386.0,2385.7,0.41926]
[1728049103168,4.03441,2386.1,2385.8,0.41924]
[1728049103571,3.6152,2386.1,2386.0,0.41921]
[1728049103772,0.4074,2386.1,2385.9,0.41922]
[1728049103977,0.4074,2386.1,2385.6,1.04821]
[1728049104164,0.4074,2386.1,2386.0,0.41921]
[1728049104363,0.4268,2386.2,2385.6,1.04821]
[1728049104674,0.4268,2386.2,2385.7,1.04817]
[1728049104976,0.4268,2386.2,2386.0,0.4192]
[1728049105372,4.618,2386.2,2386.0,0.4192]
[1728049105578,4.618,2386.2,2385.7,1.04816]
[1728049105781,0.4268,2386.2,2385.8,0.41925]
[1728049106075,3.6095,2386.5,2386.4,0.41914]
[1728049106384,3.6384,2386.8,2386.5,0.41911]
[1728049107071,3.6384,2386.8,2386.1,1.04798]
[1728049107285,3.6384,2386.8,2386.4,0.41912]
[1728049107577,3.6384,2386.8,2386.5,0.41912]
[1728049107775,3.6384,2386.8,2386.2,1.04793]
[1728049107976,3.6384,2386.8,2386.5,0.41911]
[1728049108982,3.6384,2386.8,2386.2,1.04793]
[1728049109183,4.05748,2386.8,2386.2,1.04793]
[1728049109372,4.05748,2386.8,2386.2,0.41916]
[1728049109373,7.6584,2386.8,2386.2,0.41916]
[1728049109589,7.6584,2386.8,2385.8,1.46999]
[1728049109590,0.41915,2386.4,2386.1,0.41919]
[1728049109773,0.4206,2386.3,2385.8,1.46999]
[1728049110776,0.4206,2386.3,2386.2,0.41918]
[1728049111173,3.2078,2386.5,2386.4,0.41914]
[1728049111583,7.3982,2386.5,2386.2,0.41916]
[1728049111781,3.62693,2386.5,2386.2,0.41916]
[1728049112182,0.41916,2386.3,2386.0,0.4192]
[1728049112376,4.25563,2386.5,2385.7,3.2078]
[1728049112377,3.2078,2386.5,2385.7,3.2078]
[1728049112685,0.4262,2386.2,2386.0,0.4192]
[1728049112884,0.4262,2386.2,2386.1,0.41919]
[1728049113180,0.4262,2386.2,2385.8,1.04812]
[1728049113483,0.4262,2386.2,2386.1,0.41919]
[1728049113885,0.4262,2386.2,2385.7,4.25596]
[1728049114083,0.4262,2386.2,2386.1,0.41919]
[1728049114285,0.4262,2386.2,2385.8,1.04811]
[1728049114482,0.4262,2386.2,2386.1,0.41919]
[1728049114977,3.2078,2386.5,2386.3,0.41916]
[1728049115178,3.2078,2386.5,2386.0,1.04803]
[1728049115383,3.2078,2386.5,2386.3,0.41915]
[1728049115590,3.2078,2386.5,2386.4,0.41914]
[1728049116285,0.3947,2386.6,2386.4,0.41914]
[1728049116483,0.3947,2386.6,2386.1,1.04799]
[1728049116678,0.3947,2386.6,2386.5,0.41912]
[1728049116880,0.3947,2386.6,2386.4,0.41913]
[1728049117282,0.8156,2386.7,2386.6,0.41911]
[1728049117283,0.3965,2386.7,2386.6,0.41911]
[1728049117480,3.2078,2386.9,2386.7,0.41907]
[1728049117790,3.2078,2386.9,2386.3,1.04788]
[1728049117791,3.2078,2386.9,2386.8,0.41907]
[1728049117978,3.2078,2386.9,2386.3,1.04788]
[1728049118181,3.2078,2386.9,2386.8,0.41907]
[1728049119081,3.2078,2386.9,2386.3,3.2078]
[1728049119280,3.2078,2386.9,2386.4,1.04786]
[1728049119589,3.2078,2386.9,2386.7,0.41907]
[1728049119789,3.2078,2386.9,2386.4,1.04786]
[1728049119979,3.2078,2386.9,2386.7,0.41908]
[1728049120184,3.2078,2386.9,2386.6,0.4191]
[1728049120388,3.2078,2386.9,2386.4,1.04786]
[1728049120685,3.2078,2386.9,2386.6,0.41909]
[1728049120874,3.2078,2386.9,2386.7,0.41909]
[1728049121076,3.2078,2386.9,2386.4,0.41913]
[1728049121280,0.41909,2386.7,2386.4,0.41913]
[1728049121689,3.2078,2386.9,2386.3,4.2557]
[1728049121986,3.2078,2386.9,2386.3,3.2078]
[1728049122182,0.81395,2387.0,2386.7,0.41908]
[1728049122386,0.3949,2387.0,2386.4,1.04786]
[1728049122586,0.41905,2386.9,2386.6,0.41909]
[1728049122782,0.3949,2387.0,2386.4,1.04786]
[1728049122980,0.41906,2386.9,2386.6,0.41909]
[1728049123283,8.2755,2386.8,2385.9,4.148]
[1728049123483,0.41916,2386.3,2386.1,0.41919]
[1728049123680,0.8115,2386.2,2386.1,0.41919]
[1728049124483,1.04763,2387.0,2386.4,1.04786]
[1728049124484,3.2078,2387.0,2386.4,1.04786]
[1728049124677,3.2078,2387.0,2386.8,0.41907]
[1728049124988,8.2096,2386.9,2385.9,0.209]
[1728049125196,0.41914,2386.4,2386.1,0.41918]
[1728049125381,0.8115,2386.3,2385.8,3.2078]
[1728049125587,1.62457,2386.3,2386.0,0.41921]
[1728049125993,0.41918,2386.2,2386.0,0.41921]
[1728049126183,1.62457,2386.3,2386.0,0.41921]
[1728049126399,1.2054,2386.3,2386.1,0.41919]
[1728049126786,1.2054,2386.3,2386.2,0.41918]
[1728049126985,1.2054,2386.3,2386.1,0.41918]
[1728049127283,1.2054,2386.3,2386.2,0.41918]
[1728049128089,0.8115,2386.3,2386.2,0.41918]
[1728049129486,0.8115,2386.3,2385.9,1.04807]
[1728049129487,0.8115,2386.3,2386.1,0.41918]
[1728049129690,0.8115,2386.3,2385.9,1.04807]
[1728049129892,0.8115,2386.3,2386.2,0.41918]
[1728049130686,0.8115,2386.3,2385.9,1.04807]
[1728049130883,3.2078,2386.1,2385.8,3.2078]
[1728049131081,3.2078,2386.1,2385.5,1.04825]
[1728049131288,3.627,2386.1,2385.9,0.41922]
[1728049131492,3.2078,2386.1,2385.5,1.04825]
[1728049131692,0.41924,2385.9,2385.7,0.41926]
[1728049131882,0.4187,2385.8,2385.7,0.41926]
[1728049132084,0.8115,2386.3,2385.6,1.04819]
[1728049132390,0.41922,2386.0,2385.8,0.41924]
[1728049132990,3.627,2386.1,2385.9,0.41923]
[1728049133194,3.62701,2386.1,2385.5,1.04826]
[1728049133494,0.41922,2386.0,2385.8,0.41923]
[1728049133996,3.2078,2386.1,2386.0,0.41921]
[1728049134196,3.2078,2386.1,2385.5,1.04826]
[1728049134401,3.62701,2386.1,2385.9,0.41923]
[1728049135097,3.2078,2386.1,2385.5,1.04826]
[1728049135299,0.41922,2386.0,2385.8,0.41924]
[1728049135597,3.62701,2386.1,2385.6,1.04821]
[1728049136198,0.41922,2386.0,2385.8,0.41924]
[1728049136419,3.27,2386.0,2385.4,3.2078]
[1728049136591,6.89707,2385.7,2385.5,0.41928]
[1728049136797,0.823,2385.6,2385.5,0.41928]
[1728049139203,3.2078,2385.7,2385.6,0.41928]
[1728049140798,3.2078,2385.7,2385.1,7.95711]
[1728049140993,6.4778,2385.7,2385.1,4.68711]
[1728049141199,0.7853,2385.6,2385.5,0.4193]
[1728049141398,0.4205,2386.3,2385.5,0.4193]
[1728049141399,3.6892,2386.1,2385.9,0.41923]
[1728049141597,3.2078,2386.0,2385.9,0.41923]
[1728049141795,0.7926,2386.2,2386.1,0.41919]
[1728049142093,3.22464695,2386.7,2386.6,0.41911]
[1728049142292,2.37655695,2386.7,2386.6,7.87871]
[1728049142490,3.8138917,2387.4,2386.6,13.87871]
[1728049142690,3.8138917,2387.4,2386.8,3.27]
[1728049142900,3.27,2387.2,2386.5,3.27]
[1728049143098,0.41899,2387.3,2386.5,0.41911]
[1728049143099,3.27,2387.0,2386.5,0.41911]
[1728049143302,3.27,2386.8,2386.2,0.6821]
[1728049143505,3.27,2386.8,2386.3,0.41914]
[1728049143690,3.68907,2386.8,2386.3,0.41915]
[1728049143891,3.27,2386.6,2386.0,3.2078]
[1728049144096,0.7926,2386.5,2386.0,3.2078]
[1728049144302,0.7926,2386.5,2386.3,0.41915]
[1728049144500,0.7926,2386.5,2386.0,3.2078]
[1728049144704,0.4171,2386.9,2386.1,1.04797]
[1728049144901,1.2329,2386.9,2386.1,1.04797]
[1728049145104,0.8158,2386.9,2386.8,0.41907]
[1728049145402,3.5995,2387.3,2387.0,0.41903]
[1728049145596,4.4153,2387.3,2387.0,0.41903]
[1728049146001,4.4153,2387.3,2386.7,0.41909]
[1728049146201,4.4153,2387.3,2386.9,0.41905]
[1728049146597,4.83428,2387.3,2386.9,0.41905]
[1728049146798,4.4153,2387.3,2386.9,0.41905]
[1728049146996,4.4153,2387.3,2387.0,0.41903]
[1728049147205,4.4153,2387.3,2386.9,0.41904]
[1728049147597,4.4153,2387.3,2386.7,1.04773]
[1728049147797,4.4153,2387.3,2387.1,0.419]
[1728049148121,1.2075,2387.3,2387.1,0.419]
[1728049148700,1.2075,2387.3,2386.7,1.04773]
[1728049148899,1.2075,2387.3,2387.0,0.41902]
[1728049149512,1.2075,2387.3,2387.2,0.419]
[1728049149805,3.82600159,2387.9,2387.2,9.2078]
[1728049150100,3.82600159,2387.9,2387.4,1.04742]
[1728049150305,3.82600159,2387.9,2387.8,0.4189]
[1728049151803,2.94704159,2387.9,2387.8,4.6069]
[1728049152106,4.37257325,2388.1,2388.0,0.41886]
[1728049153300,11.76757325,2388.1,2387.5,3.2078]
[1728049153506,3.2078,2387.8,2387.5,0.41894]
[1728049153802,0.8197,2387.7,2387.0,1.04756]
[1728049154602,0.8197,2387.7,2387.5,0.41894]
[1728049155194,0.8197,2387.7,2387.6,0.41893]
[1728049155597,5.0077,2387.7,2387.5,0.41894]
[1728049155802,0.8197,2387.7,2387.4,0.41895]
[1728049156001,0.8197,2387.7,2387.5,0.41894]
[1728049156208,0.8197,2387.7,2387.6,0.41893]
[1728049156400,0.3916,2388.0,2387.2,4.25531]
[1728049156597,4.0013,2388.2,2387.9,0.41888]
[1728049156799,0.7935,2388.2,2388.1,0.41884]
[1728049157401,0.4163,2388.4,2387.8,4.25502]
[1728049157602,0.4163,2388.4,2388.3,0.41881]
[1728049158009,0.4163,2388.4,2387.9,1.0472]
[1728049158409,0.4163,2388.4,2388.2,0.41881]
[1728049158614,0.4163,2388.4,2387.9,1.0472]
[1728049159207,0.4163,2388.4,2388.1,0.41884]
[1728049159614,0.4163,2388.4,2387.8,3.2078]
[1728049159912,0.4163,2388.4,2388.2,0.41882]
[1728049161129,0.4163,2388.4,2387.9,1.04719]
[1728049161314,0.4163,2388.4,2388.1,0.41883]
[1728049161511,0.4163,2388.4,2387.8,4.25503]
[1728049161816,0.4163,2388.4,2388.3,0.41881]
[1728049162018,0.7935,2388.6,2388.4,0.41878]
[1728049162412,0.7935,2388.6,2388.4,0.41877]
[1728049162813,0.4206,2388.8,2388.2,1.04707]
[1728049163018,3.6284,2388.8,2388.3,0.41881]
[1728049163224,3.6284,2388.8,2388.6,0.41875]
[1728049163415,0.4206,2388.8,2388.6,0.41875]
[1728049163615,0.4206,2388.8,2388.2,1.46556]
[1728049163912,0.4206,2388.8,2387.8,1.04721]
[1728049164117,3.2078,2388.5,2388.2,0.41882]
[1728049164319,0.804,2388.4,2387.8,1.04721]
[1728049164534,0.804,2388.4,2387.7,9.10707411]
[1728049164535,0.804,2388.4,2388.0,4.03]
[1728049164715,0.804,2388.4,2388.3,0.41881]
[1728049165112,0.804,2388.4,2387.7,5.89924411]
[1728049165113,0.804,2388.4,2387.7,8.05978411]
[1728049165312,0.804,2388.4,2387.8,1.04724]
[1728049165512,0.804,2388.4,2388.3,0.41881]
[1728049165806,0.804,2388.4,2387.8,0.41888]
[1728049166012,3.2078,2388.3,2387.8,0.41888]
[1728049166213,0.41884,2388.1,2387.8,0.41888]
[1728049166612,0.4215,2388.2,2387.4,1.61849878]
[1728049166919,0.4215,2388.2,2388.0,0.41885]
[1728049167120,0.4215,2388.2,2387.9,0.41886]
[1728049167417,0.4215,2388.2,2387.6,4.25512]
[1728049167625,0.4215,2388.2,2388.1,0.41884]
[1728049168314,0.4215,2388.2,2388.0,0.41885]
[1728049168511,0.4215,2388.2,2388.1,0.41884]
[1728049168712,3.2078,2388.3,2388.2,0.41883]
[1728049168918,0.804,2388.4,2388.3,0.41881]
[1728049169316,0.4043,2388.4,2388.3,0.41881]
[1728049170831,0.4043,2388.4,2388.0,3.6292]
[1728049171130,0.4043,2388.4,2388.2,0.41881]
[1728049171418,0.4043,2388.4,2388.0,0.4214]
[1728049171718,0.82309,2388.4,2388.1,0.41884]
[1728049171925,0.4043,2388.4,2387.7,3.2078]
[1728049172119,0.41884,2388.2,2387.9,0.41887]
[1728049172323,0.4068,2388.1,2387.9,0.41887]
[1728049172823,0.82565,2388.1,2387.9,0.41887]
[1728049173323,0.41886,2388.0,2387.5,1.04738]
[1728049173516,0.4187,2388.0,2387.5,1.04738]
[1728049173716,0.41888,2387.9,2387.7,0.4189]
[1728049173919,0.82859,2387.9,2387.7,0.41891]
[1728049174225,4.5977,2387.9,2387.3,1.04746]
[1728049174423,0.4097,2387.9,2387.3,1.04746]
[1728049174615,0.41894,2387.6,2387.4,0.41896]
[1728049174829,4.25505,2387.8,2387.1,4.25533]
[1728049175024,4.25505,2387.8,2387.4,0.41896]
[1728049175025,0.41893,2387.6,2387.4,0.41896]
[1728049175228,4.25505,2387.8,2387.0,0.4241]
[1728049175431,3.609,2387.5,2387.0,0.4241]
[1728049175722,0.4012,2387.5,2387.4,0.41897]
[1728049176116,0.8108,2387.8,2387.4,0.41897]
[1728049176316,0.3919,2387.8,2387.4,0.41897]
[1728049176523,0.8108,2387.8,2387.6,0.41893]
[1728049176717,0.3919,2387.8,2387.3,1.04746]
[1728049176918,0.81081,2387.8,2387.6,0.41893]
[1728049177314,0.3919,2387.8,2387.7,0.41891]
[1728049177527,0.3919,2387.8,2387.4,1.04742]
[1728049177528,0.4012,2387.9,2387.5,1.04736]
[1728049177830,0.4189,2387.8,2387.5,0.3934]
[1728049178031,0.4189,2387.8,2387.6,0.41893]
[1728049178217,0.4012,2387.9,2387.8,0.4189]
[1728049178622,3.2078,2388.1,2388.0,0.41886]
[1728049178816,3.2078,2388.1,2387.6,0.4096]
[1728049179029,3.2078,2388.1,2388.0,0.41886]
[1728049179422,3.2078,2388.1,2387.6,0.4096]
[1728049179623,3.2078,2388.1,2387.9,0.41886]
[1728049180128,0.83893,2388.2,2387.9,0.41886]
[1728049180327,0.41884,2388.1,2387.6,0.4096]
[1728049180653,0.41886,2388.1,2387.8,0.41888]
[1728049180824,0.41893,2387.7,2387.3,3.2078]
[1728049181019,3.2078,2388.1,2387.3,3.2078]
[1728049181020,3.2078,2387.8,2387.3,3.2078]
[1728049181223,1.88529,2387.7,2387.3,3.2078]
[1728049181425,0.838,2387.7,2387.3,3.2078]
[1728049181633,0.3924,2387.6,2387.5,0.41895]
[1728049181832,0.41895,2387.5,2387.3,3.62677]
[1728049182529,0.3924,2387.6,2387.5,0.41895]
[1728049182729,0.4237,2387.7,2387.6,0.41893]
[1728049183632,0.4189,2387.8,2387.6,0.41892]
[1728049184127,0.41889,2387.9,2387.3,4.25524]
[1728049184330,0.41889,2387.9,2387.7,0.41891]
[1728049184525,0.41891,2387.7,2387.5,0.41894]
[1728049184830,0.4189,2387.8,2387.3,3.2078]
[1728049185032,0.4189,2387.8,2387.3,4.25526]
[1728049185228,0.4189,2387.8,2387.6,0.41893]
[1728049185534,0.4189,2387.8,2387.5,0.41893]
[1728049185830,1.44206,2388.0,2387.3,4.25526]
[1728049186023,0.4189,2387.8,2387.6,0.41893]
[1728049186227,1.44206,2388.0,2387.3,3.2078]
[1728049186424,0.41888,2387.9,2387.7,0.4189]
[1728049186620,0.81377,2388.0,2387.8,0.41888]
[1728049186833,0.41889,2387.9,2387.7,0.41891]
[1728049187030,0.4189,2387.8,2387.6,0.41892]
[1728049187427,0.41888,2387.9,2387.5,0.41893]
[1728049187627,0.41891,2387.8,2387.6,0.41893]
[1728049188136,4.188,2387.8,2387.3,3.2078]
[1728049188430,0.41889,2387.9,2387.7,0.41891]
[1728049189335,0.41889,2387.9,2387.8,0.41889]
[1728049189336,0.41888,2387.9,2387.8,0.41889]
[1728049189935,0.3924,2388.1,2387.9,0.41888]
[1728049190436,0.3924,2388.1,2388.0,0.41886]
[1728049191133,0.81651,2388.3,2387.8,1.04723]
[1728049191134,0.3977,2388.3,2388.2,0.41883]
[1728049191635,4.25466,2388.7,2387.8,3.2078]
[1728049191830,0.41875,2388.6,2388.3,0.4188]
[1728049192523,0.41877,2388.6,2388.3,0.4188]
[1728049192931,0.41878,2388.5,2388.3,0.4188]
[1728049193231,5.05686,2388.7,2388.3,0.4188]
[1728049193434,1.04694,2388.5,2387.9,0.2628]
[1728049193640,1.04694,2388.5,2388.1,0.41883]
[1728049193934,0.41881,2388.3,2387.9,0.2628]
[1728049194127,1.04694,2388.5,2387.7,1.04727]
[1728049194128,3.2078,2388.4,2387.7,1.04727]
[1728049194331,3.2078,2388.4,2387.9,0.41886]
[1728049194332,0.41884,2388.2,2387.9,0.41886]
[1728049194537,1.44273,2388.3,2387.6,0.4083]
[1728049194838,0.82024,2388.2,2388.0,0.41886]
[1728049195031,0.4014,2388.2,2388.0,0.41886]
[1728049195235,0.41885,2388.1,2387.9,0.41887]
[1728049195533,0.82024,2388.2,2387.9,0.41887]
[1728049195740,0.82024,2388.2,2387.7,1.04729]
[1728049195934,0.4014,2388.2,2388.1,0.41884]
[1728049196240,0.82023,2388.2,2388.0,0.41885]
[1728049196740,0.82023,2388.2,2387.7,1.04729]
[1728049197030,0.82023,2388.2,2388.0,0.41886]
[1728049197242,0.82023,2388.2,2387.8,0.41888]
[1728049197243,0.41885,2388.1,2387.8,0.41888]
[1728049197428,0.84745,2388.1,2387.8,0.41888]
[1728049197625,0.84745,2388.1,2387.6,0.4083]
[1728049197626,0.41886,2388.0,2387.6,0.4083]
[1728049197838,0.4286,2388.1,2387.6,0.4083]
[1728049198039,0.4286,2388.1,2388.0,0.41886]
[1728049198333,0.4286,2388.1,2387.7,1.04729]
[1728049198638,0.4286,2388.1,2388.0,0.41886]
[1728049198936,0.4286,2388.1,2387.9,0.41887]
[1728049199238,0.4286,2388.1,2387.7,1.04729]
[1728049199630,0.4286,2388.1,2387.9,0.41886]
[1728049200350,0.4286,2388.1,2388.0,0.41886]
[1728049200536,4.121,2388.6,2388.3,0.41881]
[1728049200834,3.2078,2388.4,2387.8,4.255]
[1728049201037,0.413,2388.3,2388.1,0.41883]
[1728049201339,3.6266,2388.4,2387.8,4.255]
[1728049201340,3.2078,2388.4,2388.3,0.41881]
[1728049201633,0.8188,2388.8,2388.2,2.51297]
[1728049201837,0.8188,2388.8,2388.3,1.47273]
[1728049202340,0.4015,2389.2,2389.0,0.41867]
[1728049202572,0.8251,2389.3,2389.1,0.41867]
[1728049202740,0.8251,2389.3,2388.7,1.04685]
[1728049202944,1.24374,2389.3,2389.0,0.41868]
[1728049203242,0.8251,2389.3,2388.7,1.04685]
[1728049203632,0.8251,2389.3,2389.0,0.41867]
[1728049203839,0.8251,2389.3,2388.7,1.04685]
[1728049204040,1.24373,2389.3,2388.9,0.41869]
[1728049204243,0.8251,2389.3,2389.0,0.41867]
[1728049204539,0.8251,2389.3,2389.0,0.41868]
[1728049204733,1.24374,2389.3,2388.7,1.04685]
[1728049204943,0.41865,2389.2,2388.7,1.04685]
[1728049205238,0.8251,2389.3,2388.8,1.0468]
[1728049205436,0.8251,2389.3,2388.9,0.4234]
[1728049205640,0.8251,2389.3,2389.2,0.41865]
[1728049205840,7.3288,2389.7,2388.9,1.47016]
[1728049206140,4.0126,2389.7,2389.4,0.4186]
[1728049206336,4.0126,2389.7,2389.2,1.04663]
[1728049206542,4.0126,2389.7,2389.1,1.04667]
[1728049206739,4.43117,2389.7,2389.4,0.41861]
[1728049207137,4.0126,2389.7,2389.1,1.04667]
[1728049207445,4.0126,2389.7,2389.5,0.41859]
[1728049207744,8.1974,2389.7,2388.9,5.50013]
[1728049207947,0.4186,2389.5,2389.2,0.41864]
[1728049208237,4.0126,2389.7,2389.0,1.04671]
[1728049208438,4.0126,2389.7,2389.0,1.04672]
[1728049208742,4.0126,2389.7,2389.6,0.41858]
[1728049208934,4.0126,2389.7,2389.5,0.41859]
[1728049209341,4.0126,2389.7,2389.0,4.25449]
[1728049209544,4.0126,2389.7,2388.9,4.4534]
[1728049209545,0.4186,2389.5,2389.2,0.41864]
[1728049209840,5.05902,2389.7,2388.9,0.4234]
[1728049210041,4.0126,2389.7,2388.9,0.4234]
[1728049210247,1.04646,2389.6,2389.2,0.41863]
[1728049210441,0.41862,2389.4,2389.2,0.41863]
[1728049210641,0.41865,2389.3,2389.0,0.41868]
[1728049210833,0.41865,2389.3,2389.1,0.41866]
[1728049211039,0.41864,2389.3,2389.1,0.41865]
[1728049211241,4.25434,2389.4,2389.1,0.41867]
[1728049211242,0.4242,2389.2,2389.1,0.41867]
[1728049211844,0.82931,2389.5,2389.0,1.04672]
[1728049212038,0.82931,2389.5,2389.4,0.41861]
[1728049212039,0.4107,2389.5,2389.4,0.41861]
[1728049212756,0.4242,2389.6,2389.1,0.4122]
[1728049212947,1.47066,2389.6,2388.9,4.51736]
[1728049213144,0.4242,2389.6,2388.9,4.25456]
[1728049213439,0.4242,2389.6,2389.5,0.4186]
[1728049213636,3.6212,2389.7,2389.6,0.41858]
[1728049213833,0.4242,2390.1,2389.5,3.2078]
[1728049214044,4.33,2390.9,2390.3,0.41845]
[1728049214339,0.4184,2390.6,2390.2,0.41847]
[1728049214539,4.4337,2390.7,2390.3,0.41845]
[1728049214735,4.4337,2390.7,2389.9,1.4507]
[1728049214936,0.41841,2390.6,2389.9,1.4507]
[1728049215138,0.8075,2390.7,2390.4,0.41843]
[1728049215543,0.8075,2390.7,2390.3,0.41845]
[1728049215747,0.8075,2390.7,2390.1,7.2378]
[1728049216044,0.8075,2390.7,2390.4,0.41842]
[1728049216243,0.8075,2390.7,2390.1,7.2378]
[1728049216430,0.8075,2390.7,2390.4,0.41843]
[1728049216641,0.8075,2390.7,2390.1,7.2378]
[1728049216845,0.8075,2390.7,2390.5,0.41842]
[1728049217435,0.8075,2390.7,2390.1,7.2378]
[1728049217635,0.8075,2390.7,2390.5,0.41842]
[1728049217844,0.41836,2390.9,2390.1,7.2378]
[1728049217845,3.2078,2391.0,2390.4,4.03]
[1728049218043,3.2078,2391.0,2390.5,0.4096]
[1728049218243,3.2078,2391.0,2390.8,0.41836]
[1728049218645,0.82479,2391.3,2390.5,1.45564]
[1728049218943,0.4065,2391.3,2390.5,1.45564]
[1728049219146,0.82479,2391.3,2391.0,0.41832]
[1728049219342,0.4065,2391.3,2391.0,0.41832]
[1728049219541,0.4065,2391.3,2390.6,5.07602]
[1728049219741,0.4065,2391.3,2390.7,3.2078]
[1728049220342,0.41834,2391.0,2390.7,0.41838]
[1728049220555,0.41834,2391.0,2390.7,0.41837]
[1728049220748,0.41831,2391.2,2390.9,0.41834]
[1728049221139,0.80919,2391.3,2391.0,0.41833]
[1728049221350,0.4183,2391.2,2390.9,0.41834]
[1728049221547,0.41834,2391.0,2390.7,0.41838]
[1728049221844,3.2078,2391.0,2390.3,0.14073904]
[1728049222144,0.41838,2390.8,2390.2,1.04618]
[1728049222336,0.3902,2390.9,2390.1,5.63881381]
[1728049222553,0.3909,2390.7,2390.1,5.49552]
[1728049222938,0.3909,2390.7,2390.5,0.4184]
[1728049223144,0.3909,2390.7,2390.3,0.41846]
[1728049223447,0.3909,2390.7,2390.6,0.4184]
[1728049223847,0.3909,2390.7,2390.5,0.41841]
[1728049224142,0.3909,2390.7,2390.6,0.4184]
[1728049224549,0.3909,2390.7,2390.1,5.49552]
[1728049224743,0.8093,2390.7,2390.4,0.41843]